fUST/lending_fUST_20241003
["ID","MTS","AMOUNT","RATE_DAILY","PERIOD"]
[339710697,1727887847159,-329.639621,0.00013698,2]
[339710698,1727887847169,-329.639621,0.00013698,2]
[339710699,1727887847179,-229.492997,0.00013698,2]
[339710700,1727887847189,-500.0,0.00013698,2]
[339710701,1727887847200,-500.0,0.00013698,2]
[339710702,1727887847211,-857.08,0.00013698,2]
[339710703,1727887847221,-500.0,0.00013698,2]
[339710704,1727887847231,-494.28723382,0.00013698,2]
[339710705,1727887847317,234.42,0.00010959,2]
[339710706,1727887852868,500.0,0.0001041,2]
[339710707,1727887854424,500.0,0.0001178,2]
[339710708,1727887857072,364.58,0.00010959,2]
[339710709,1727887867685,303.81,0.00010959,2]
[339710710,1727887878263,253.18,0.00010959,2]
[339710711,1727887888775,210.98,0.00010959,2]
[339710712,1727887899427,175.82,0.00010959,2]
[339710713,1727887910219,879.11,0.00010959,2]
[339710730,1727888739108,-213.4495216,0.00011,2]
[339710731,1727888739129,-3000.0,0.00011571,2]
[339710732,1727888739150,-300.0,0.00011742,2]
[339710733,1727888739171,-282.08065072,0.00011742,2]
[339710734,1727888755094,-17.91934928,0.00011742,2]
[339710735,1727888755116,-250.0,0.00011743,2]
[339710736,1727888755138,-4854.83949212,0.00011743,2]
[339710737,1727888830093,-1147.00224511,0.00011191,2]
[339710738,1727888831139,-148.47667239,0.00011191,2]
[339710739,1727888831161,-300.0,0.00011742,2]
[339710740,1727888831183,-300.0,0.00011742,2]
[339710741,1727888831206,-17604.70693513,0.00011743,2]
[339710742,1727888953137,-186.271621,0.00010631,2]
[339710743,1727888953158,-190.6999502,0.00011191,2]
[339710744,1727888953179,-2440.45357275,0.00011743,2]
[339710745,1727888953200,-186.271621,0.0001175,2]
[339710746,1727888953224,-182.894737,0.00011831,2]
[339710747,1727888953245,-182.894737,0.00011863,2]
[339710748,1727888953266,-182.894737,0.00011896,2]
[339710749,1727888953287,-182.894737,0.00011928,2]
[339710750,1727888953308,-182.894737,0.00011961,2]
[339710751,1727888953329,-182.894737,0.00011993,2]
[339710752,1727888953350,-947.9022312,0.00011993,2]
[339710753,1727888953371,-182.894737,0.00012026,2]
[339710754,1727888953392,-182.894737,0.00012058,2]
[339710755,1727888953414,-2417.38567994,0.00012058,2]
[339710756,1727888953435,-182.894737,0.0001209,2]
[339710757,1727888953459,-182.894737,0.00012123,2]
[339710758,1727888953482,-182.894737,0.00012155,2]
[339710759,1727888953504,-182.894737,0.00012188,2]
[339710760,1727888953524,-182.894737,0.0001222,2]
[339710761,1727888953546,-182.894737,0.00012253,2]
[339710762,1727888953571,-182.894737,0.00012285,2]
[339710763,1727888953594,-182.894737,0.00012317,2]
[339710764,1727888953618,-182.894737,0.0001235,2]
[339710765,1727888953640,-182.894737,0.00012382,2]
[339710766,1727888953662,-182.894737,0.00012415,2]
[339710767,1727888953683,-300.0,0.00012415,2]
[339710768,1727888953704,-300.0,0.00012415,2]
[339710769,1727888953724,-182.894737,0.00012447,2]
[339710782,1727889032106,-153.633273,0.00012877,2]
[339710783,1727889032116,-153.0,0.00012877,2]
[339710784,1727889032125,-153.0,0.00012877,2]
[339710785,1727889032136,-153.0,0.00012878,2]
[339710786,1727889032147,-153.0,0.00012978,2]
[339710787,1727889032157,-1000.0,0.00013,11]
[339710788,1727889032167,-193.26981215,0.0001305,2]
[339710789,1727889032178,-153.0,0.00013078,2]
[339710790,1727889032188,-153.0,0.00013078,2]
[339710791,1727889032197,-153.0,0.00013078,2]
[339710792,1727889032207,-500.0,0.0001315,2]
[339710793,1727889032219,-153.0,0.00013178,2]
[339710794,1727889032231,-153.0,0.000132,2]
[339710795,1727889032240,-300.0,0.00013467,2]
[339710796,1727889032254,-300.0,0.00013467,2]
[339710797,1727889032263,-125.94460226,0.00013468,2]
[339710798,1727889032277,-6943.24634852,0.00013468,2]
[339710799,1727889032292,-150.0,0.00013546,2]
[339710800,1727889032301,-12270.74906477,0.00013561,2]
[339710801,1727889032311,-153.0,0.00013562,2]
[339710802,1727889032321,-359.94209863,0.00013568,2]
[339710803,1727889032330,-359.94209862,0.00013571,2]
[339710804,1727889032340,-359.94209862,0.00013573,2]
[339710805,1727889032350,-359.94209862,0.00013576,2]
[339710806,1727889032362,-359.94209862,0.00013578,2]
[339710807,1727889032373,-1000.0,0.00013578,2]
[339710808,1727889032385,-917.57056284,0.00013598,2]
[339710809,1727889032395,-19694.92975175,0.00013598,2]
[339710810,1727889032406,-11447.83630683,0.00013598,2]
[339710811,1727889032419,-150.112233,0.000136,2]
[339710812,1727889032430,-500.0,0.00013606,2]
[339710813,1727889032608,-18422.84523908,0.00013668,2]
[339710814,1727889036394,467.5696111,0.00011302,2]
[339710815,1727889038092,-590.50808963,0.00013598,2]
[339710816,1727889038148,-41.42673117,0.00013598,2]
[339710817,1727889038158,-32059.34939862,0.00013668,2]
[339710818,1727889038168,-2981.13718951,0.00013668,2]
[339710819,1727889038177,-500.0,0.00013673,2]
[339710820,1727889038187,-500.0,0.00013673,2]
[339710821,1727889038196,-500.0,0.00013673,2]
[339710822,1727889038206,-500.0,0.00013673,2]
[339710823,1727889038216,-500.0,0.00013673,2]
[339710824,1727889038225,-500.0,0.00013673,2]
[339710825,1727889038235,-500.0,0.00013673,2]
[339710826,1727889038245,-252410.973189,0.00013678,2]
[339710827,1727889038256,-17886.8231371,0.00013678,2]
[339710828,1727889038271,-38754.7834636,0.00013688,2]
[339710829,1727889038281,-18932.38399953,0.00013698,2]
[339710830,1727889038290,-2203.15451133,0.00013698,2]
[339710831,1727889038300,-500.0,0.00013698,2]
[339710832,1727889038309,-500.0,0.00013698,2]
[339710833,1727889038318,-516.53873763,0.00013698,2]
[339710834,1727889038327,-500.0,0.00013698,2]
[339710835,1727889038336,-500.0,0.00013698,2]
[339710836,1727889038345,-500.0,0.00013698,2]
[339710837,1727889038355,-669.56,0.00013698,2]
[339710838,1727889038364,-151.0,0.00013698,2]
[339710839,1727889038373,-500.0,0.00013698,2]
[339710840,1727889038382,-151.0,0.00013698,2]
[339710841,1727889038391,-500.0,0.00013698,2]
[339710842,1727889038401,-500.0,0.00013698,2]
[339710843,1727889038409,-830.38,0.00013698,2]
[339710844,1727889038418,-500.0,0.00013698,2]
[339710845,1727889038429,-500.0,0.00013698,2]
[339710846,1727889038439,-500.0,0.00013698,2]
[339710847,1727889038448,-500.0,0.00013698,2]
[339710848,1727889038457,-518.46824491,0.00013698,2]
[339710849,1727889038467,-500.0,0.00013698,2]
[339710851,1727889038477,-553.34,0.00013698,2]
[339710852,1727889038490,-500.0,0.00013698,2]
[339710854,1727889038500,-500.0,0.00013698,2]
[339710855,1727889038515,-500.0,0.00013698,2]
[339710857,1727889038526,-500.0,0.00013698,2]
[339710858,1727889038538,-500.0,0.00013698,2]
[339710860,1727889038549,-519.25,0.00013698,2]
[339710861,1727889038702,-500.0,0.00013698,2]
[339710862,1727889038712,-863.87,0.00013698,2]
[339710863,1727889038721,-500.0,0.00013698,2]
[339710864,1727889038731,-552.33,0.00013698,2]
[339710865,1727889038741,-966.42,0.00013698,2]
[339710866,1727889038750,-500.0,0.00013698,2]
[339710867,1727889038763,-500.0,0.00013698,2]
[339710868,1727889038772,-766.37,0.00013698,2]
[339710869,1727889038781,-500.0,0.00013698,2]
[339710870,1727889038790,-500.0,0.00013698,2]
[339710871,1727889038800,-500.0,0.00013698,2]
[339710872,1727889038809,-604.77,0.00013698,2]
[339710873,1727889038819,-500.0,0.00013698,2]
[339710874,1727889038828,-169.96409514,0.00013698,2]
[339710875,1727889038837,-1637.6,0.00013698,2]
[339710876,1727889038846,-588.73,0.00013698,2]
[339710877,1727889038855,-561.37,0.00013698,2]
[339710878,1727889038864,-500.0,0.00013698,2]
[339710879,1727889038874,-500.0,0.00013698,2]
[339710880,1727889038883,-500.0,0.00013698,2]
[339710881,1727889038893,-151.0,0.00013698,2]
[339710882,1727889038904,-151.0,0.00013698,2]
[339710883,1727889038913,-500.0,0.00013698,2]
[339710884,1727889038923,-500.0,0.00013698,2]
[339710885,1727889038933,-629.03,0.00013698,2]
[339710886,1727889038944,-500.0,0.00013698,2]
[339710887,1727889038954,-500.0,0.00013698,2]
[339710888,1727889038965,-500.0,0.00013698,2]
[339710889,1727889038975,-500.0,0.00013698,2]
[339710890,1727889038986,-500.0,0.00013698,2]
[339710891,1727889038996,-500.0,0.00013698,2]
[339710892,1727889039006,-500.0,0.00013698,2]
[339710893,1727889039016,-500.0,0.00013698,2]
[339710894,1727889039027,-929.13,0.00013698,2]
[339710895,1727889039039,-500.0,0.00013698,2]
[339710896,1727889039050,-500.0,0.00013698,2]
[339710897,1727889039062,-503.4632699,0.00013698,2]
[339710898,1727889039072,-831.19,0.00013698,2]
[339710899,1727889039082,-549.79,0.00013698,2]
[339710900,1727889039093,-500.0,0.00013698,2]
[339710901,1727889039103,-500.0,0.00013698,2]
[339710902,1727889039113,-500.0,0.00013698,2]
[339710903,1727889039123,-747.84,0.00013698,2]
[339710904,1727889039133,-500.0,0.00013698,2]
[339710905,1727889039142,-500.0,0.00013698,2]
[339710906,1727889039152,-500.0,0.00013698,2]
[339710907,1727889039162,-151.0,0.00013698,2]
[339710908,1727889039172,-151.0,0.00013698,2]
[339710909,1727889039181,-500.0,0.00013698,2]
[339710910,1727889039191,-500.0,0.00013698,2]
[339710911,1727889039201,-500.0,0.00013698,2]
[339710912,1727889039211,-500.0,0.00013698,2]
[339710913,1727889039220,-500.0,0.00013698,2]
[339710914,1727889039229,-500.0,0.00013698,2]
[339710915,1727889039239,-702.92,0.00013698,2]
[339710916,1727889039248,-502.06482612,0.00013698,2]
[339710917,1727889039259,-546.42,0.00013698,2]
[339710918,1727889039268,-222.59135317,0.00013698,2]
[339710919,1727889039277,-500.0,0.00013698,2]
[339710920,1727889039286,-500.0,0.00013698,2]
[339710921,1727889039295,-544.61,0.00013698,2]
[339710922,1727889039305,-500.0,0.00013698,2]
[339710923,1727889039314,-500.0,0.00013698,2]
[339710924,1727889039323,-500.0,0.00013698,2]
[339710925,1727889039332,-500.0,0.00013698,2]
[339710926,1727889039341,-500.0,0.00013698,2]
[339710927,1727889039350,-500.0,0.00013698,2]
[339710928,1727889039359,-500.0,0.00013698,2]
[339710929,1727889039368,-500.0,0.00013698,2]
[339710930,1727889039377,-500.0,0.00013698,2]
[339710931,1727889039387,-500.0,0.00013698,2]
[339710932,1727889039396,-599.19,0.00013698,2]
[339710933,1727889039405,-500.0,0.00013698,2]
[339710934,1727889039415,-500.0,0.00013698,2]
[339710935,1727889039424,-151.0,0.00013698,2]
[339710936,1727889039433,-500.0,0.00013698,2]
[339710937,1727889039443,-151.0,0.00013698,2]
[339710938,1727889039453,-500.0,0.00013698,2]
[339710939,1727889039464,-500.0,0.00013698,2]
[339710940,1727889039474,-500.0,0.00013698,2]
[339710941,1727889039485,-500.0,0.00013698,2]
[339710942,1727889039495,-500.0,0.00013698,2]
[339710943,1727889039506,-500.0,0.00013698,2]
[339710944,1727889039515,-500.0,0.00013698,2]
[339710945,1727889039525,-500.0,0.00013698,2]
[339710946,1727889039536,-500.0,0.00013698,2]
[339710947,1727889039545,-182.89430196,0.00013698,2]
[339710948,1727889039554,-501.65418803,0.00013698,2]
[339710949,1727889039566,-2469.13,0.00013698,2]
[339710950,1727889039576,-500.0,0.00013698,2]
[339710951,1727889039586,-174.434944,0.00013698,2]
[339710952,1727889039596,-174.434944,0.00013698,2]
[339710953,1727889039606,-719.45,0.00013698,2]
[339710954,1727889039615,-174.434944,0.00013698,2]
[339710955,1727889039625,-174.434944,0.00013698,2]
[339710956,1727889039636,-500.0,0.00013698,2]
[339710957,1727889039645,-500.0,0.00013698,2]
[339710958,1727889039658,-500.0,0.00013698,2]
[339710959,1727889039668,-588.03,0.00013698,2]
[339710960,1727889039678,-151.0,0.00013698,2]
[339710961,1727889039688,-239.71163,0.00013698,2]
[339710962,1727889039700,-500.0,0.00013698,2]
[339710963,1727889039709,-500.0,0.00013698,2]
[339710964,1727889039720,-500.0,0.00013698,2]
[339710965,1727889039730,-500.0,0.00013698,2]
[339710966,1727889039740,-500.0,0.00013698,2]
[339710967,1727889039750,-500.0,0.00013698,2]
[339710968,1727889039760,-500.0,0.00013698,2]
[339710969,1727889039770,-500.0,0.00013698,2]
[339710970,1727889039780,-500.0,0.00013698,2]
[339710971,1727889039790,-500.0,0.00013698,2]
[339710972,1727889039800,-500.0,0.00013698,2]
[339710973,1727889039809,-500.0,0.00013698,2]
[339710974,1727889039819,-833.37,0.00013698,2]
[339710975,1727889039828,-500.0,0.00013698,2]
[339710976,1727889039839,-500.0,0.00013698,2]
[339710977,1727889039848,-500.0,0.00013698,2]
[339710978,1727889039856,-500.0,0.00013698,2]
[339710979,1727889039865,-500.0,0.00013698,2]
[339710980,1727889039875,-500.0,0.00013698,2]
[339710981,1727889039885,-957.03,0.00013698,2]
[339710982,1727889039894,-500.0,0.00013698,2]
[339710983,1727889039904,-500.0,0.00013698,2]
[339710984,1727889039913,-768.25,0.00013698,2]
[339710985,1727889039923,-500.0,0.00013698,2]
[339710986,1727889039933,-500.0,0.00013698,2]
[339710987,1727889039943,-500.0,0.00013698,2]
[339710988,1727889039953,-500.0,0.00013698,2]
[339710989,1727889039963,-500.0,0.00013698,2]
[339710990,1727889039972,-500.0,0.00013698,2]
[339710991,1727889039982,-550.04,0.00013698,2]
[339710992,1727889039991,-500.0,0.00013698,2]
[339710993,1727889040001,-866.18,0.00013698,2]
[339710994,1727889040013,-619.17,0.00013698,2]
[339710995,1727889040023,-500.0,0.00013698,2]
[339710996,1727889040032,-500.0,0.00013698,2]
[339710997,1727889040042,-614.62,0.00013698,2]
[339710998,1727889040051,-747.09,0.00013698,2]
[339710999,1727889040061,-334.66172764,0.00013698,2]
[339711000,1727889040071,-500.0,0.00013698,2]
[339711001,1727889040081,-500.0,0.00013698,2]
[339711002,1727889040090,-500.0,0.00013698,2]
[339711003,1727889040100,-500.0,0.00013698,2]
[339711004,1727889040109,-500.0,0.00013698,2]
[339711005,1727889040119,-969.7,0.00013698,2]
[339711006,1727889040129,-500.0,0.00013698,2]
[339711007,1727889040138,-500.0,0.00013698,2]
[339711008,1727889040148,-500.0,0.00013698,2]
[339711009,1727889040158,-500.0,0.00013698,2]
[339711010,1727889040168,-601.30721592,0.00013698,2]
[339711011,1727889040178,-500.0,0.00013698,2]
[339711012,1727889040188,-500.0,0.00013698,2]
[339711013,1727889040198,-500.0,0.00013698,2]
[339711014,1727889040207,-500.0,0.00013698,2]
[339711015,1727889040217,-767.77,0.00013698,2]
[339711016,1727889040227,-500.0,0.00013698,2]
[339711017,1727889040236,-500.0,0.00013698,2]
[339711018,1727889040246,-500.0,0.00013698,2]
[339711019,1727889040258,-500.0,0.00013698,2]
[339711020,1727889040267,-500.0,0.00013698,2]
[339711021,1727889040276,-500.0,0.00013698,2]
[339711022,1727889040285,-500.0,0.00013698,2]
[339711023,1727889040295,-716.6,0.00013698,2]
[339711024,1727889040304,-500.0,0.00013698,2]
[339711025,1727889040313,-450.0,0.00013698,2]
[339711026,1727889040323,-500.0,0.00013698,2]
[339711027,1727889040332,-200.0,0.00013698,2]
[339711028,1727889040342,-600.73023962,0.00013698,2]
[339711029,1727889040352,-500.0,0.00013698,2]
[339711030,1727889040362,-500.0,0.00013698,2]
[339711031,1727889040371,-500.0,0.00013698,2]
[339711032,1727889040380,-508.94073619,0.00013698,2]
[339711033,1727889040389,-500.0,0.00013698,2]
[339711034,1727889040398,-503.95531067,0.00013698,2]
[339711035,1727889040408,-500.0,0.00013698,2]
[339711036,1727889040418,-639.10591948,0.00013698,2]
[339711037,1727889040428,-500.0,0.00013698,2]
[339711038,1727889040438,-500.0,0.00013698,2]
[339711039,1727889040448,-500.0,0.00013698,2]
[339711040,1727889040458,-500.0,0.00013698,2]
[339711041,1727889040468,-763.52,0.00013698,2]
[339711042,1727889040477,-645.48,0.00013698,2]
[339711043,1727889040490,-500.0,0.00013698,2]
[339711044,1727889040500,-715.52,0.00013698,2]
[339711045,1727889040511,-500.0,0.00013698,2]
[339711046,1727889040520,-517.21119377,0.00013698,2]
[339711047,1727889040531,-500.0,0.00013698,2]
[339711048,1727889040540,-151.0,0.00013698,2]
[339711049,1727889040549,-500.0,0.00013698,2]
[339711050,1727889040560,-500.0,0.00013698,2]
[339711051,1727889040571,-500.0,0.00013698,2]
[339711052,1727889040581,-151.0,0.00013698,2]
[339711053,1727889040592,-500.0,0.00013698,2]
[339711054,1727889040602,-500.0,0.00013698,2]
[339711055,1727889040611,-435.46808291,0.00013698,2]
[339711056,1727889040621,-500.0,0.00013698,2]
[339711057,1727889040630,-500.0,0.00013698,2]
[339711058,1727889040640,-500.0,0.00013698,2]
[339711059,1727889040650,-500.0,0.00013698,2]
[339711060,1727889040660,-500.0,0.00013698,2]
[339711061,1727889040669,-682.02,0.00013698,2]
[339711063,1727889040799,-500.0,0.00013698,2]
[339711064,1727889040809,-500.0,0.00013698,2]
[339711065,1727889040819,-500.0,0.00013698,2]
[339711066,1727889040828,-500.0,0.00013698,2]
[339711067,1727889040838,-545.05,0.00013698,2]
[339711068,1727889040848,-500.0,0.00013698,2]
[339711069,1727889040857,-500.0,0.00013698,2]
[339711070,1727889040866,-158.591749,0.00013698,2]
[339711071,1727889040875,-158.591749,0.00013698,2]
[339711072,1727889040885,-500.0,0.00013698,2]
[339711074,1727889040894,-158.591749,0.00013698,2]
[339711076,1727889040904,-158.591749,0.00013698,2]
[339711078,1727889040913,-1356.94,0.00013698,2]
[339711081,1727889040923,-500.0,0.00013698,2]
[339711083,1727889040932,-500.0,0.00013698,2]
[339711084,1727889040942,-151.0,0.00013698,2]
[339711087,1727889040952,-151.0,0.00013698,2]
[339711089,1727889040962,-500.0,0.00013698,2]
[339711090,1727889040971,-500.0,0.00013698,2]
[339711093,1727889040981,-883.58,0.00013698,2]
[339711094,1727889040990,-500.0,0.00013698,2]
[339711097,1727889041000,-500.0,0.00013698,2]
[339711098,1727889041011,-500.0,0.00013698,2]
[339711100,1727889041021,-500.0,0.00013698,2]
[339711102,1727889041030,-500.0,0.00013698,2]
[339711105,1727889041040,-805.0,0.00013698,2]
[339711107,1727889041050,-513.97,0.00013698,2]
[339711109,1727889041059,-501.68,0.00013698,2]
[339711111,1727889041069,-151.0,0.00013698,2]
[339711113,1727889041078,-151.0,0.00013698,2]
[339711115,1727889041087,-571.17968517,0.00013698,2]
[339711117,1727889041098,-500.0,0.00013698,2]
[339711119,1727889041107,-500.0,0.00013698,2]
[339711121,1727889041116,-558.69081154,0.00013698,2]
[339711123,1727889041126,-500.0,0.00013698,2]
[339711125,1727889041135,-500.0,0.00013698,2]
[339711127,1727889041145,-500.0,0.00013698,2]
[339711129,1727889041155,-500.0,0.00013698,2]
[339711131,1727889041166,-500.0,0.00013698,2]
[339711133,1727889041176,-500.0,0.00013698,2]
[339711135,1727889041186,-506.74383691,0.00013698,2]
[339711137,1727889041196,-500.0,0.00013698,2]
[339711139,1727889041206,-730.66,0.00013698,2]
[339711141,1727889041216,-837.3,0.00013698,2]
[339711143,1727889041226,-500.0,0.00013698,2]
[339711145,1727889041235,-151.0,0.00013698,2]
[339711147,1727889041245,-151.0,0.00013698,2]
[339711150,1727889041258,-797.33,0.00013698,2]
[339711152,1727889041269,-620.35144194,0.00013698,2]
[339711154,1727889041280,-500.0,0.00013698,2]
[339711156,1727889041290,-151.0,0.00013698,2]
[339711158,1727889041301,-151.0,0.00013698,2]
[339711160,1727889041311,-500.0,0.00013698,2]
[339711162,1727889041321,-635.71,0.00013698,2]
[339711164,1727889041331,-500.0,0.00013698,2]
[339711167,1727889041341,-593.04,0.00013698,2]
[339711169,1727889041351,-500.0,0.00013698,2]
[339711171,1727889041361,-830.96,0.00013698,2]
[339711173,1727889041371,-500.0,0.00013698,2]
[339711175,1727889041381,-500.0,0.00013698,2]
[339711177,1727889041391,-500.0,0.00013698,2]
[339711179,1727889041402,-500.0,0.00013698,2]
[339711181,1727889041411,-685.25,0.00013698,2]
[339711183,1727889041420,-500.0,0.00013698,2]
[339711185,1727889041432,-611.74,0.00013698,2]
[339711187,1727889041443,-652.22,0.00013698,2]
[339711189,1727889041453,-500.0,0.00013698,2]
[339711191,1727889041463,-1130.6,0.00013698,2]
[339711193,1727889041472,-500.0,0.00013698,2]
[339711196,1727889041482,-500.0,0.00013698,2]
[339711198,1727889041495,-852.86,0.00013698,2]
[339711199,1727889041503,-956.5,0.00013698,2]
[339711202,1727889041517,-500.0,0.00013698,2]
[339711204,1727889041526,-500.0,0.00013698,2]
[339711205,1727889041537,-500.0,0.00013698,2]
[339711208,1727889041546,-500.0,0.00013698,2]
[339711210,1727889041556,-151.0,0.00013698,2]
[339711211,1727889041566,-151.0,0.00013698,2]
[339711213,1727889041576,-500.0,0.00013698,2]
[339711215,1727889041585,-500.0,0.00013698,2]
[339711217,1727889041594,-500.0,0.00013698,2]
[339711219,1727889041604,-500.0,0.00013698,2]
[339711221,1727889041614,-500.0,0.00013698,2]
[339711223,1727889041623,-500.0,0.00013698,2]
[339711225,1727889041633,-500.0,0.00013698,2]
[339711227,1727889041643,-874.77,0.00013698,2]
[339711229,1727889041653,-500.0,0.00013698,2]
[339711231,1727889041663,-639.5,0.00013698,2]
[339711233,1727889041672,-565.82,0.00013698,2]
[339711235,1727889041682,-500.0,0.00013698,2]
[339711237,1727889041692,-500.0,0.00013698,2]
[339711240,1727889041702,-500.0,0.00013698,2]
[339711242,1727889041712,-500.0,0.00013698,2]
[339711244,1727889041722,-500.0,0.00013698,2]
[339711246,1727889041731,-500.0,0.00013698,2]
[339711248,1727889041741,-500.0,0.00013698,2]
[339711250,1727889041751,-569.09,0.00013698,2]
[339711252,1727889041762,-151.0,0.00013698,2]
[339711254,1727889041773,-156.386614,0.00013698,2]
[339711256,1727889041783,-500.0,0.00013698,2]
[339711258,1727889041793,-500.0,0.00013698,2]
[339711260,1727889041801,-500.0,0.00013698,2]
[339711262,1727889041811,-500.0,0.00013698,2]
[339711264,1727889041820,-1000.0,0.00013698,2]
[339711266,1727889041831,-500.0,0.00013698,2]
[339711268,1727889041841,-500.0,0.00013698,2]
[339711270,1727889041851,-500.0,0.00013698,2]
[339711272,1727889041860,-500.0,0.00013698,2]
[339711274,1727889041870,-500.0,0.00013698,2]
[339711276,1727889041880,-500.0,0.00013698,2]
[339711278,1727889041890,-151.0,0.00013698,2]
[339711280,1727889041900,-260.407373,0.00013698,2]
[339711282,1727889041910,-504.03944099,0.00013698,2]
[339711284,1727889041919,-500.0,0.00013698,2]
[339711286,1727889041929,-500.0,0.00013698,2]
[339711288,1727889041939,-500.0,0.00013698,2]
[339711290,1727889041949,-500.0,0.00013698,2]
[339711292,1727889041959,-500.0,0.00013698,2]
[339711294,1727889041969,-581.6,0.00013698,2]
[339711296,1727889041980,-500.0,0.00013698,2]
[339711298,1727889041990,-500.0,0.00013698,2]
[339711300,1727889042001,-500.0,0.00013698,2]
[339711302,1727889042014,-500.0,0.00013698,2]
[339711304,1727889042025,-500.0,0.00013698,2]
[339711307,1727889042035,-500.0,0.00013698,2]
[339711309,1727889042045,-596.31,0.00013698,2]
[339711311,1727889042055,-500.0,0.00013698,2]
[339711313,1727889042065,-832.73,0.00013698,2]
[339711315,1727889042075,-500.0,0.00013698,2]
[339711317,1727889042085,-500.0,0.00013698,2]
[339711319,1727889042095,-500.0,0.00013698,2]
[339711320,1727889042105,-151.0,0.00013698,2]
[339711322,1727889042116,-151.0,0.00013698,2]
[339711324,1727889042125,-500.0,0.00013698,2]
[339711326,1727889042135,-1074.28,0.00013698,2]
[339711329,1727889042146,-500.0,0.00013698,2]
[339711331,1727889042156,-500.0,0.00013698,2]
[339711333,1727889042166,-500.0,0.00013698,2]
[339711335,1727889042176,-500.0,0.00013698,2]
[339711337,1727889042185,-500.0,0.00013698,2]
[339711339,1727889042195,-500.0,0.00013698,2]
[339711341,1727889042205,-549.86,0.00013698,2]
[339711343,1727889042216,-500.0,0.00013698,2]
[339711345,1727889042227,-500.0,0.00013698,2]
[339711347,1727889042238,-413.15005897,0.00013698,2]
[339711349,1727889042249,-500.0,0.00013698,2]
[339711351,1727889042262,-580.06,0.00013698,2]
[339711353,1727889042272,-151.0,0.00013698,2]
[339711355,1727889042283,-929.55,0.00013698,2]
[339711357,1727889042291,-151.0,0.00013698,2]
[339711359,1727889042301,-500.0,0.00013698,2]
[339711361,1727889042311,-500.0,0.00013698,2]
[339711363,1727889042321,-500.0,0.00013698,2]
[339711366,1727889042333,-691.86,0.00013698,2]
[339711368,1727889042344,-500.0,0.00013698,2]
[339711370,1727889042356,-297.393338,0.00013698,2]
[339711372,1727889042366,-500.0,0.00013698,2]
[339711374,1727889042375,-500.0,0.00013698,2]
[339711376,1727889042386,-500.0,0.00013698,2]
[339711378,1727889042397,-1104.89,0.00013698,2]
[339711380,1727889042408,-500.0,0.00013698,2]
[339711383,1727889042419,-773.17,0.00013698,2]
[339711385,1727889042430,-500.0,0.00013698,2]
[339711387,1727889042439,-500.0,0.00013698,2]
[339711388,1727889042448,-500.0,0.00013698,2]
[339711391,1727889042458,-565.4,0.00013698,2]
[339711393,1727889042468,-500.0,0.00013698,2]